bitfinex-derivatives/quotes_SOLF0:USTF0_20240920
["timestamp","ask_amount","ask_price","bid_price","bid_amount"]
[1726815771647,25.43,151.56,151.46,3.31033344]
[1726815771954,3.2993,151.54,151.44,157.55]
[1726815772347,25.43,151.56,151.44,157.55]
[1726815772653,3.2996,151.53,151.46,3.3009]
[1726815773151,30.7322,151.54,151.45,3.3011]
[1726815773357,30.7322,151.54,151.44,157.55]
[1726815773857,3.2996,151.53,151.46,3.3009]
[1726815774155,3.2996,151.53,151.44,157.55]
[1726815774156,30.7322,151.54,151.44,132.12]
[1726815774360,30.7322,151.54,151.45,3.3011]
[1726815774851,3.2998,151.52,151.45,3.3011]
[1726815776957,3.2998,151.52,151.46,3.3009]
[1726815777855,30.7322,151.54,151.44,132.12]
[1726815779051,3.2997,151.52,151.46,3.301]
[1726815779854,3.2999,151.51,151.46,3.301]
[1726815780060,30.7322,151.54,151.44,132.12]
[1726815780457,3.2998,151.52,151.46,3.3008]
[1726815781658,3.2998,151.52,151.47,3.3007]
[1726815781864,5.3022,151.54,151.46,3.36965134]
[1726815782061,5.3022,151.54,151.49,3.3002]
[1726815782862,25.43,151.59,151.54,3.2992]
[1726815783065,3.25112255,151.62,151.49,25.43]
[1726815783260,2.5742,151.64,151.49,25.43]
[1726815783463,25.43,151.61,151.52,3.2997]
[1726815783767,28.79800052,151.61,151.52,3.2997]
[1726815784169,3.2986,151.57,151.52,3.2997]
[1726815784569,3.36800052,151.61,151.47,25.43]
[1726815784776,25.43,151.58,151.48,3.23510646]
[1726815785268,25.43,151.58,151.47,25.43]
[1726815785471,5.4066,151.57,151.44,368.43]
[1726815785766,5.4066,151.57,151.44,343.0]
[1726815785767,25.43,151.53,151.44,343.0]
[1726815785961,8.0291,151.57,151.45,3.37897696]
[1726815786165,25.43,151.56,151.45,3.37897696]
[1726815786470,25.43,151.54,151.44,25.43]
[1726815786671,25.43,151.54,151.41,25.43]
[1726815786965,3.2997,151.52,151.46,3.3008]
[1726815788674,25.43,151.54,151.41,25.43]
[1726815789372,3.2997,151.52,151.46,3.301]
[1726815790070,8.0291,151.57,151.45,3.29107339]
[1726815790372,8.0291,151.57,151.44,25.43]
[1726815790573,3.2993,151.54,151.48,3.3004]
[1726815790967,3.2993,151.54,151.49,3.3003]
[1726815792176,3.2993,151.54,151.46,3.32606725]
[1726815792177,8.0291,151.57,151.46,25.43]
[1726815792376,5.4066,151.57,151.46,371.68883129]
[1726815792671,25.43,151.61,151.49,25.43]
[1726815792875,3.29151535,151.6,151.47,25.43]
[1726815793379,25.43,151.61,151.47,28.75287883]
[1726815793975,3.2985,151.58,151.51,3.2999]
[1726815794171,25.43,151.58,151.47,28.75287883]
[1726815794577,25.43,151.58,151.51,3.2997]
[1726815794879,25.43,151.58,151.47,28.75287883]
[1726815795182,25.43,151.56,151.44,25.43]
[1726815795482,25.43,151.53,151.43,132.06]
[1726815795874,3.2997,151.52,151.46,3.3008]
[1726815796177,25.43,151.53,151.43,132.06]
[1726815796380,28.7296,151.53,151.47,3.3007]
[1726815796584,25.43,151.53,151.47,3.3007]
[1726815797079,25.43,151.53,151.48,3.3004]
[1726815797275,2.6088,151.55,151.45,3.23862]
[1726815797483,2.6088,151.55,151.46,25.43]
[1726815797678,5.3001,151.57,151.46,25.43]
[1726815797679,8.5988,151.57,151.46,3.22473856]
[1726815797871,5.3001,151.57,151.44,25.43]
[1726815798072,5.3001,151.57,151.45,25.43]
[1726815798278,5.3001,151.57,151.45,28.69797712]
[1726815798476,25.43,151.56,151.45,25.43]
[1726815798683,25.43,151.53,151.43,132.06]
[1726815798879,28.7296,151.53,151.47,3.3007]
[1726815799381,25.43,151.53,151.43,132.06]
[1726815800575,28.7295,151.53,151.47,3.3006]
[1726815800780,28.7295,151.53,151.43,132.06]
[1726815801682,28.7295,151.53,151.46,3.301]
[1726815802182,28.7295,151.53,151.42,157.47]
[1726815803182,28.7295,151.53,151.46,3.3008]
[1726815803380,3.2997,151.52,151.46,3.3008]
[1726815803575,25.43,151.53,151.42,157.47]
[1726815803576,25.43,151.53,151.45,3.3012]
[1726815804175,3.2998,151.52,151.46,3.3008]
[1726815804580,25.43,151.53,151.42,132.04]
[1726815804780,25.43,151.53,151.48,3.3005]
[1726815806182,28.7295,151.53,151.48,3.3005]
[1726815806381,25.43,151.53,151.42,157.47]
[1726815806982,3.2998,151.52,151.46,3.3008]
[1726815810188,3.2998,151.52,151.45,3.31572543]
[1726815810386,3.2998,151.52,151.42,157.47]
[1726815810987,3.3,151.51,151.45,3.3012]
[1726815813697,3.3007,151.48,151.42,3.3017]
[1726815813890,25.43,151.51,151.4,157.47]
[1726815814284,3.3002,151.5,151.4,157.47]
[1726815815697,28.7299,151.51,151.45,3.3011]
[1726815815895,25.43,151.51,151.4,157.47]
[1726815816198,25.43,151.53,151.49,3.3002]
[1726815816498,5.3001,151.57,151.49,3.30460908]
[1726815816798,5.3001,151.57,151.47,25.43]
[1726815816799,8.5989,151.57,151.5,3.3001]
[1726815817192,5.3001,151.57,151.5,3.3001]
[1726815817497,5.3001,151.57,151.49,3.3003]
[1726815817498,3.2991,151.55,151.49,3.3003]
[1726815817694,5.3001,151.57,151.45,25.43]
[1726815817892,25.43,151.55,151.47,3.3007]
[1726815818197,25.43,151.55,151.42,368.43]
[1726815818398,3.2997,151.52,151.46,3.3008]
[1726815818597,3.2997,151.52,151.46,6.62357227]
[1726815818896,3.2997,151.52,151.46,3.3008]
[1726815819490,3.3002,151.5,151.44,3.3013]
[1726815819693,3.3002,151.5,151.4,157.47]
[1726815820095,3.3,151.51,151.45,3.3012]
[1726815820593,3.3,151.51,151.4,157.47]
[1726815820594,3.2997,151.52,151.46,3.3009]
[1726815821095,28.69666666,151.53,151.41,132.06]
[1726815821300,3.3002,151.5,151.41,132.06]
[1726815821697,28.69666666,151.53,151.41,132.06]
[1726815822101,3.2999,151.51,151.46,3.3009]
[1726815822306,25.43,151.53,151.46,3.3009]
[1726815822600,3.2999,151.51,151.45,3.3011]
[1726815823097,3.2999,151.51,151.41,132.06]
[1726815824000,3.2999,151.51,151.45,3.301]
[1726815824200,3.2999,151.51,151.45,6.54233377]
[1726815825904,19.1399,151.51,151.45,6.54233377]
[1726815826803,15.84,151.49,151.41,132.06]
[1726815827398,19.1405,151.49,151.43,3.3016]
[1726815828505,3.3006,151.48,151.42,3.3018]
[1726815829201,19.1406,151.48,151.42,3.3018]
[1726815831505,19.82,151.42,151.21,229.0]
[1726815831704,3.33068862,151.42,151.27,15.84]
[1726815831905,3.3026,151.39,151.31,19.1441]
[1726815832112,15.84,151.43,151.33,15.84]
[1726815832404,3.3031,151.37,151.3,3.28148939]
[1726815832605,3.3031,151.37,151.29,19.1445]
[1726815832907,15.84,151.37,151.28,2.6109]
[1726815833105,3.3036,151.35,151.28,2.6109]
[1726815833305,15.84,151.37,151.28,2.6109]
[1726815834412,3.3038,151.34,151.28,2.6109]
[1726815834605,15.84,151.35,151.27,132.06]
[1726815835001,3.3038,151.33,151.27,132.06]
[1726815837010,25.37,151.36,151.27,132.06]
[1726815837604,25.37,151.36,151.23,25.37]
[1726815837806,25.37,151.36,151.24,132.14]
[1726815838208,3.3043,151.31,151.25,3.3055]
[1726815838603,3.3043,151.31,151.24,135.49040983]
[1726815838805,3.3045,151.3,151.24,135.49040983]
[1726815839013,25.37,151.33,151.24,132.14]
[1726815839313,5.3278,151.32,151.24,132.14]
[1726815839511,3.3049,151.29,151.24,132.14]
[1726815839705,25.37,151.31,151.24,132.14]
[1726815840912,3.3051,151.28,151.24,132.14]
[1726815842205,25.37,151.31,151.24,132.14]
[1726815842408,28.1169,151.31,151.24,132.14]
[1726815843309,3.3054,151.26,151.24,132.14]
[1726815843516,25.37,151.28,151.24,132.14]
[1726815844313,3.3052,151.27,151.24,132.14]
[1726815845215,3.3054,151.26,151.24,132.14]
[1726815845417,2.7469,151.31,151.24,132.14]
[1726815845814,3.3049,151.29,151.24,135.4456]
[1726815847218,3.3049,151.29,151.24,3.3056]
[1726815847509,5.3278,151.32,151.24,3.37796012]
[1726815847714,5.3278,151.32,151.21,25.37]
[1726815848817,3.3043,151.31,151.24,3.3057]
[1726815849015,3.3043,151.31,151.24,6.59043398]
[1726815851219,3.3043,151.31,151.25,3.3056]
[1726815851414,25.37,151.35,151.24,3.28473398]
[1726815851614,25.37,151.35,151.25,2.7775]
[1726815851814,25.37,151.35,151.27,3.3051]
[1726815852009,3.3039,151.33,151.27,3.3051]
[1726815852314,25.37,151.35,151.25,134.9975]
[1726815852512,3.3042,151.32,151.25,138.3029]
[1726815852709,25.37,151.35,151.25,132.22]
[1726815852911,3.3042,151.32,151.25,132.22]
[1726815853111,25.37,151.35,151.25,132.22]
[1726815853817,3.304,151.33,151.27,3.305]
[1726815854020,25.37,151.35,151.25,132.22]
[1726815855912,15.86,151.33,151.26,3.3052]
[1726815856322,3.3042,151.32,151.26,3.3052]
[1726815857217,3.3043,151.31,151.25,135.5255]
[1726815857815,3.3045,151.3,151.25,132.22]
[1726815858019,15.86,151.29,151.25,132.22]
[1726815858222,3.305,151.28,151.25,132.22]
[1726815858923,19.1647,151.29,151.25,132.22]
[1726815859422,15.86,151.36,151.25,132.22]
[1726815859423,15.86,151.31,151.25,132.22]
[1726815860833,3.3045,151.3,151.25,132.22]
[1726815861528,3.3045,151.3,151.23,3.22677685]
[1726815862220,3.3045,151.3,151.24,3.3056]
[1726815862623,15.86,151.33,151.24,15.86]
[1726815863223,3.3042,151.32,151.26,3.3053]
[1726815863724,3.3043,151.31,151.26,3.3053]
[1726815863925,3.3043,151.31,151.25,3.3055]
[1726815864123,15.86,151.33,151.24,15.86]
[1726815864622,15.86,151.33,151.25,3.3055]
[1726815865327,15.86,151.31,151.24,3.3058]
[1726815865521,15.86,151.36,151.21,134.9695]
[1726815865721,15.86,151.29,151.21,134.9695]
[1726815866122,3.3053,151.27,151.21,138.2759]
[1726815866827,3.3049,151.28,151.22,3.3062]
[1726815867026,3.3049,151.28,151.21,134.9695]
[1726815867229,15.86,151.29,151.21,134.9695]
[1726815867524,15.86,151.33,151.24,15.86]
[1726815867729,15.86,151.33,151.25,3.31691351]
[1726815867930,19.164,151.33,151.27,3.305]
[1726815868830,3.3041,151.32,151.26,3.3053]
[1726815869724,15.86,151.33,151.26,3.3053]
[1726815869925,19.164,151.33,151.27,3.3051]
[1726815870432,15.86,151.33,151.29,3.3046]
[1726815870630,21.0656,151.35,151.26,19.16854158]
[1726815871633,21.0656,151.35,151.26,15.86]
[1726815871832,24.369,151.35,151.29,3.3045]
[1726815872032,21.0656,151.35,151.26,19.18738331]
[1726815872434,3.3036,151.34,151.28,3.3048]
[1726815873435,3.3036,151.34,151.29,3.3047]
[1726815873634,3.3036,151.34,151.26,19.18738331]
[1726815873930,3.3036,151.34,151.28,3.3048]
[1726815874336,3.3038,151.33,151.28,3.3048]
[1726815874734,21.0656,151.35,151.28,3.3048]
[1726815874928,21.0656,151.35,151.26,19.18738331]
[1726815875430,24.3692,151.35,151.29,3.3045]
[1726815875731,21.0656,151.35,151.26,19.18738331]
[1726815876429,3.3036,151.34,151.28,3.3048]
[1726815877024,3.3036,151.34,151.29,3.3047]
[1726815877225,24.3691,151.35,151.29,3.3047]
[1726815878035,21.0656,151.35,151.26,19.18738331]
[1726815878227,15.86,151.37,151.28,15.86]
[1726815878431,15.86,151.41,151.32,15.86]
[1726815878638,15.86,151.41,151.27,15.86]
[1726815878639,5.2203,151.42,151.34,15.86]
[1726815878839,5.2203,151.42,151.36,15.86]
[1726815879133,2.5619,151.47,151.38,15.86]
[1726815879134,18.4219,151.47,151.38,15.86]
[1726815879330,23.6422,151.47,151.38,15.86]
[1726815880332,23.6422,151.47,151.38,3.3026]
[1726815880732,15.86,151.45,151.37,135.5029]
[1726815881436,3.3021,151.41,151.37,132.2]
[1726815881638,15.86,151.45,151.37,132.2]
[1726815882835,3.3017,151.43,151.37,3.3029]
[1726815883537,3.3019,151.42,151.36,3.3031]
[1726815883734,3.3019,151.42,151.35,132.18]
[1726815884232,15.86,151.4,151.35,132.18]
[1726815884835,3.3027,151.39,151.35,132.18]
[1726815885044,15.86,151.4,151.35,132.18]
[1726815885241,15.86,151.4,151.3,15.86]
[1726815885534,3.303,151.37,151.3,15.86]
[1726815885940,3.303,151.37,151.31,3.3043]
[1726815887242,5.5312,151.39,151.34,3.3035]
[1726815887435,5.5312,151.39,151.3,15.86]
[1726815887632,15.86,151.41,151.32,15.86]
[1726815888441,5.5594,151.46,151.34,15.86]
[1726815888442,15.86,151.43,151.34,15.86]
[1726815888942,19.1617,151.43,151.37,3.3029]
[1726815889538,3.3019,151.42,151.36,19.1631]
[1726815890038,15.86,151.43,151.36,15.86]
[1726815890239,3.3019,151.42,151.37,3.3029]
[1726815890737,3.3019,151.42,151.36,15.86]
[1726815891239,19.1617,151.43,151.36,15.86]
[1726815891437,15.86,151.43,151.38,3.3027]
[1726815891743,3.3013,151.45,151.38,15.86]
[1726815892136,3.3013,151.45,151.39,3.3025]
[1726815892534,3.3013,151.45,151.38,15.86]
[1726815892741,8.8604,151.46,151.41,3.302]
[1726815892941,15.86,151.48,151.4,15.86]
[1726815893143,15.86,151.5,151.4,15.86]
[1726815893442,5.4086,151.49,151.4,15.86]
[1726815893841,3.3007,151.48,151.42,3.3018]
[1726815894440,5.4086,151.49,151.4,15.86]
[1726815895951,15.86,151.46,151.38,132.16]
[1726815896341,18.4378,151.48,151.38,132.16]
[1726815896537,18.4378,151.48,151.39,15.86]
[1726815897746,2.5778,151.48,151.39,15.86]
[1726815898142,3.3009,151.47,151.41,3.302]
[1726815898343,2.5778,151.48,151.38,132.16]
[1726815898548,15.86,151.45,151.38,132.16]
[1726815898945,19.1613,151.45,151.39,3.3024]
[1726815899541,3.3013,151.45,151.39,3.3024]
[1726815899848,19.1608,151.47,151.41,3.302]
[1726815900450,5.4086,151.49,151.4,15.86]
[1726815901755,5.4086,151.49,151.38,132.16]
[1726815901756,2.7839,151.56,151.44,15.86]
[1726815901945,15.86,151.54,151.44,15.86]
[1726815902340,3.2999,151.52,151.46,3.301]
[1726815902549,15.86,151.54,151.45,3.22844478]
[1726815903061,5.3936,151.55,151.43,132.1]
[1726815903249,15.86,151.51,151.43,132.1]
[1726815903654,3.3002,151.5,151.44,3.3014]
[1726815904546,3.3,151.51,151.45,3.3011]
[1726815904746,5.3936,151.55,151.43,132.1]
[1726815904942,21.2536,151.55,151.44,15.86]
[1726815905151,15.86,151.53,151.44,19.15239302]
[1726815905850,3.3,151.51,151.44,19.15239302]
[1726815906249,3.3006,151.48,151.43,132.1]
[1726815906449,15.86,151.51,151.43,132.1]
[1726815907552,3.3003,151.5,151.44,3.3013]
[1726815908751,15.86,151.47,151.41,132.08]
[1726815909348,3.301,151.46,151.41,132.08]
[1726815909549,15.86,151.51,151.41,147.94]
[1726815909758,3.3001,151.51,151.45,3.3012]
[1726815910150,15.86,151.54,151.44,15.86]
[1726815910347,15.86,151.54,151.44,19.12664372]
[1726815910548,3.2996,151.53,151.47,3.3006]
[1726815911051,19.1593,151.54,151.44,19.12664372]
[1726815911457,15.86,151.54,151.44,19.12664372]
[1726815911656,15.86,151.54,151.47,3.3008]
[1726815912355,3.2996,151.53,151.47,3.3008]
[1726815913557,3.2996,151.53,151.48,3.3005]
[1726815913858,19.1593,151.54,151.48,3.3005]
[1726815914260,19.1593,151.54,151.49,3.3003]
[1726815914560,19.1593,151.54,151.44,19.12664372]
[1726815914858,19.1593,151.54,151.48,3.3004]
[1726815915161,3.2995,151.53,151.44,19.12664372]
[1726815915361,15.86,151.52,151.45,3.3012]
[1726815916250,3.3001,151.51,151.45,3.3012]
[1726815917254,3.3001,151.51,151.42,150.5069]
[1726815917859,19.1597,151.52,151.42,150.5069]
[1726815918156,15.86,151.54,151.44,15.86]
[1726815918453,15.86,151.54,151.44,19.12279683]
[1726815918959,3.2997,151.53,151.44,19.12279683]
[1726815919352,3.2997,151.53,151.42,134.6469]
[1726815919353,15.86,151.52,151.42,150.5069]
[1726815919559,5.3936,151.55,151.42,132.06]
[1726815919560,15.86,151.5,151.42,132.06]
[1726815920260,15.86,151.5,151.42,147.92]
[1726815921563,3.3005,151.49,151.43,3.3016]
[1726815921756,15.86,151.48,151.42,132.06]
[1726815921951,3.3016,151.44,151.42,132.06]
[1726815922154,15.86,151.45,151.42,132.06]
[1726815922660,19.1612,151.45,151.42,132.06]
[1726815924066,3.3016,151.43,151.42,132.06]
[1726815924264,15.86,151.43,151.37,3.3029]
[1726815924658,3.3019,151.42,151.37,3.3029]
[1726815924859,15.86,151.43,151.37,3.3029]
[1726815925266,19.1617,151.43,151.37,3.3029]
[1726815925666,15.86,151.43,151.36,3.3031]
[1726815925863,3.3022,151.41,151.34,15.86]
[1726815926067,27.6361,151.47,151.32,132.08]
[1726815926267,15.86,151.36,151.32,132.08]
[1726815927167,15.86,151.34,151.32,132.08]
[1726815927376,2.5298,151.39,151.27,3.28555555]
[1726815927377,15.86,151.33,151.27,3.28555555]
[1726815927568,15.86,151.33,151.25,3.3055]
[1726815927569,15.86,151.3,151.25,3.3055]
[1726815927964,3.3043,151.31,151.25,3.3055]
[1726815928177,19.1643,151.31,151.25,3.3055]
[1726815928674,2.5298,151.32,151.24,15.86]
[1726815928871,2.5298,151.32,151.25,15.86]
[1726815929972,2.5298,151.32,151.28,3.3049]
[1726815931072,2.5298,151.32,151.25,15.86]
[1726815931878,2.5298,151.32,151.28,3.3049]
[1726815932075,2.5298,151.32,151.25,15.86]
[1726815932271,2.5298,151.32,151.23,147.96]
[1726815932473,15.86,151.31,151.25,3.3055]
[1726815932678,18.5917,151.31,151.25,3.3055]
[1726815932874,18.5917,151.31,151.23,132.1]
[1726815933670,2.8044,151.33,151.25,15.86]
[1726815933871,2.8044,151.33,151.25,25.4]
[1726815934473,25.4,151.37,151.25,25.4]
[1726815934773,2.7308,151.38,151.32,3.304]
[1726815934974,2.7308,151.38,151.25,25.4]
[1726815935176,6.0337,151.38,151.31,3.3042]
[1726815936578,3.3032,151.36,151.29,3.3045]
[1726815937177,3.3032,151.36,151.3,3.3044]
[1726815937578,28.1308,151.38,151.25,25.4]
[1726815937775,28.1308,151.38,151.28,3.3047]
[1726815938181,25.4,151.35,151.24,2.5662]
[1726815938381,25.4,151.35,151.26,3.3053]
[1726815938674,3.3042,151.32,151.26,3.3053]
[1726815939074,2.7569,151.31,151.26,3.3053]
[1726815939271,2.7569,151.31,151.27,3.305]
[1726815939879,2.7569,151.31,151.23,132.1]
[1726815941684,2.7569,151.31,151.22,25.4]
[1726815942287,2.7569,151.31,151.26,3.3052]
[1726815944788,25.4,151.3,151.21,134.7416]
[1726815944982,2.7569,151.31,151.21,134.7416]
[1726815944983,25.4,151.27,151.21,132.2]
[1726815946086,3.3054,151.26,151.21,132.2]
[1726815946492,25.4,151.27,151.21,132.2]
[1726815946688,28.7052,151.27,151.21,132.2]
[1726815947087,25.4,151.27,151.21,132.2]
[1726815947588,28.7051,151.27,151.22,3.3062]
[1726815947992,28.7051,151.27,151.21,132.2]
[1726815948291,3.3054,151.26,151.21,135.5063]
[1726815949291,28.7057,151.25,151.21,132.2]
[1726815950595,2.5782,151.24,151.21,132.2]
[1726815951201,5.8841,151.24,151.19,3.3067]
[1726815951398,5.8841,151.24,151.18,3.3071]
[1726815952097,5.8841,151.24,151.14,132.24]
[1726815952498,5.8841,151.24,151.18,3.3069]
[1726815952900,3.3065,151.21,151.14,132.24]
[1726815953101,25.4,151.23,151.17,3.3073]
[1726815953304,28.192,151.23,151.14,132.24]
[1726815953496,3.3066,151.21,151.14,132.24]
[1726815953693,3.3066,151.21,151.15,3.3077]
[1726815954001,15.89,151.2,151.15,3.3077]
[1726815954405,15.89,151.2,151.16,3.3075]
[1726815955304,15.89,151.2,151.15,3.3077]
[1726815956303,15.89,151.2,151.14,132.24]
[1726815959711,15.89,151.22,151.14,132.24]
[1726815960411,19.1963,151.22,151.17,3.3073]
[1726815960710,5.5953,151.23,151.13,15.89]
[1726815960907,5.5953,151.23,151.15,15.89]
[1726815961112,5.5953,151.23,151.18,3.307]
[1726815961310,5.5953,151.23,151.15,15.89]
[1726815961908,5.5953,151.23,151.19,3.3069]
[1726815962308,8.84593427,151.23,151.12,2.7257]
[1726815962508,15.89,151.22,151.13,15.89]
[1726815962813,15.89,151.22,151.16,3.3073]
[1726815963012,19.1964,151.22,151.16,3.3073]
[1726815963411,15.89,151.2,151.16,3.3073]
[1726815964012,15.89,151.2,151.12,2.7257]
[1726815964215,8.84593427,151.23,151.11,132.3]
[1726815964411,15.89,151.17,151.11,132.3]
[1726815964715,15.89,151.17,151.13,3.308]
[1726815965111,19.1974,151.17,151.12,3.3083]
[1726815965316,19.1974,151.17,151.09,112.26161004]
[1726815965816,19.1974,151.17,151.11,3.3085]
[1726815966409,3.3074,151.17,151.11,3.3085]
[1726815966609,15.89,151.16,151.11,3.3085]
[1726815967210,15.89,151.14,151.09,109.61231004]
[1726815967714,19.198,151.14,151.09,109.61231004]
[1726815968705,15.89,151.12,151.09,109.61231004]
[1726815968908,15.89,151.1,151.09,109.61231004]
[1726815969713,15.89,151.1,151.06,132.32]
[1726815969915,15.89,151.1,151.07,3.3095]
[1726815970115,15.89,151.12,151.06,132.32]
[1726815971415,15.89,151.12,151.07,3.3095]
[1726815971913,15.89,151.12,151.06,132.32]
[1726815972517,15.89,151.12,151.08,3.3092]
[1726815973605,15.89,151.14,151.06,132.32]
[1726815974317,15.89,151.14,151.1,3.3087]
[1726815975016,15.89,151.16,151.07,15.89]
[1726815976318,15.89,151.14,151.09,3.3089]
[1726815977114,19.198,151.14,151.08,3.3093]
[1726815977414,15.89,151.14,151.05,15.89]
[1726815977816,3.3083,151.13,151.07,3.3093]
[1726815978114,3.3083,151.13,151.04,132.36]
[1726815978312,25.41,151.14,151.04,132.36]
[1726815979514,28.1791,151.14,151.02,28.74123534]
[1726815979718,3.3087,151.11,151.02,3.33123534]
[1726815980016,3.3087,151.11,151.01,135.1368]
[1726815981013,25.41,151.12,151.01,135.1368]
[1726815981319,2.7691,151.14,151.02,25.41]
[1726815981521,25.41,151.17,151.05,25.41]
[1726815981713,2.5321,151.18,151.06,2.5689]
[1726815981917,28.7183,151.13,151.07,3.3094]
[1726815982217,25.41,151.13,151.06,2.5689]
[1726815982418,25.41,151.13,151.01,135.1368]
[1726815982715,3.3087,151.11,151.02,2.5689]
[1726815982915,3.3087,151.11,151.03,3.25863895]
[1726815983110,3.3087,151.11,151.02,2.5689]
[1726815983316,2.6892,151.12,151.04,3.31]
[1726815983618,25.41,151.11,151.04,3.31]
[1726815983813,25.41,151.11,151.02,2.5689]
[1726815984014,25.41,151.11,151.02,5.87785008]
[1726815984615,25.41,151.11,151.06,3.3096]
[1726815985216,28.7187,151.11,151.06,3.3096]
[1726815985820,25.41,151.11,151.02,5.87785008]
[1726815986522,28.7187,151.11,151.05,3.3098]
[1726815986713,25.41,151.11,151.02,2.5689]
[1726815986914,25.41,151.08,151.0,132.4]
[1726815987114,28.7194,151.08,151.02,3.3105]
[1726815988521,25.41,151.09,151.0,132.4]
[1726815990328,3.3096,151.07,151.01,3.3107]
[1726815991428,25.41,151.09,151.0,132.4]
[1726815991932,2.6892,151.12,151.0,132.4]
[1726815992126,3.25063427,151.23,151.04,25.41]
[1726815992332,3.3073,151.18,151.11,3.3085]
[1726815992831,30.8088,151.19,151.07,25.41]
[1726815993027,30.8088,151.19,151.07,28.64737674]
[1726815993535,2.6525,151.19,151.09,25.41]
[1726815993733,2.6525,151.19,151.13,3.308]
[1726815994125,2.6525,151.19,151.09,25.41]
[1726815994333,25.41,151.17,151.07,3.23737674]
[1726815994531,25.41,151.14,151.05,5.2511]
[1726815994726,3.3082,151.13,151.06,3.3095]
[1726815995029,25.41,151.14,151.05,5.2511]
[1726815995330,3.3085,151.12,151.05,5.2511]
[1726815995631,25.41,151.12,151.03,132.4]
[1726815996021,25.41,151.12,151.04,3.3101]
[1726815996841,25.41,151.12,151.03,135.7103]
[1726815997029,25.41,151.1,151.03,132.4]
[1726815998925,3.3094,151.08,151.03,132.4]
[1726815999225,25.41,151.1,151.03,132.4]
[1726815999531,5.4762,151.11,151.03,132.4]
[1726815999725,25.41,151.07,151.03,132.4]
[1726816000832,3.3098,151.06,151.03,132.4]
[1726816001730,3.3098,151.06,151.01,3.3108]
[1726816002029,5.4762,151.11,150.98,2.5306]
[1726816002030,3.3102,151.04,150.99,3.3112]
[1726816002234,25.41,151.05,150.97,109.68388112]
[1726816003232,25.41,151.05,151.0,3.3109]
[1726816005237,28.7196,151.07,151.02,3.3106]
[1726816005437,25.41,151.07,150.97,109.68388112]
[1726816006540,28.68626175,151.07,150.97,109.68388112]
[1726816006935,25.41,151.07,150.97,109.68388112]
[1726816007737,3.3099,151.06,151.0,3.3108]
[1726816008437,3.3099,151.06,150.97,109.68388112]
[1726816008438,3.31,151.05,150.99,3.3112]
[1726816008640,25.41,151.06,150.97,109.68388112]
[1726816009045,3.3101,151.05,150.99,3.3112]
[1726816010644,3.3102,151.04,150.99,3.3112]
[1726816010844,25.41,151.06,150.99,3.3112]
[1726816011145,3.3101,151.05,150.99,3.3112]